bitfinex/quotes_BTCUSD_20250620
["timestamp","ask_amount","ask_price","bid_price","bid_amount"]
[1750436982241,0.34,104180.0,104170.0,0.28489181]
[1750436982495,0.49602684,104190.0,104180.0,0.28600061]
[1750436982496,0.00782684,104190.0,104180.0,0.28600061]
[1750436982712,0.45509817,104200.0,104190.0,0.28584943]
[1750436982924,0.45509817,104200.0,104190.0,0.28697943]
[1750436982925,0.45523938,104200.0,104190.0,0.28697943]
[1750436983351,0.46483566,104200.0,104190.0,0.45405943]
[1750436983566,0.80483566,104200.0,104190.0,0.45405943]
[1750436983786,0.79523938,104200.0,104190.0,0.45405943]
[1750436984034,0.79523938,104200.0,104190.0,0.51686303]
[1750436984247,0.79623938,104200.0,104190.0,0.51686303]
[1750436984454,0.80437346,104200.0,104190.0,0.51686303]
[1750436985523,0.82456593,104200.0,104190.0,0.51686303]
[1750436985734,0.35987139,104200.0,104190.0,0.51686303]
[1750436986153,0.81496956,104200.0,104190.0,0.51686303]
[1750436986392,0.82456575,104200.0,104190.0,0.51686303]
[1750436987224,0.81496956,104200.0,104190.0,0.51686303]
[1750436987442,0.82456593,104200.0,104190.0,0.51686303]
[1750436987674,0.83416249,104200.0,104190.0,0.28697943]
[1750436987891,0.83416249,104200.0,104190.0,0.45397943]
[1750436988533,0.82456593,104200.0,104190.0,0.45397943]
[1750436988767,0.82456584,104200.0,104190.0,0.45397943]
[1750436989304,0.82456593,104200.0,104190.0,0.45397943]
[1750436989719,0.37906432,104200.0,104190.0,0.45397943]
[1750436989925,0.84375914,104200.0,104190.0,0.45397943]
[1750436990350,0.85335588,104200.0,104190.0,0.45397943]
[1750436991227,0.82456593,104200.0,104190.0,0.45397943]
[1750436991449,1.0356977,104200.0,104190.0,0.45397943]
[1750436991666,0.84375913,104200.0,104190.0,0.45397943]
[1750436992802,1.04529453,104200.0,104190.0,0.45397943]
[1750436993023,1.03569843,104200.0,104190.0,0.258187]
[1750436993246,1.02610206,104200.0,104190.0,0.43462475]
[1750436993472,1.15021399,104200.0,104190.0,0.45381998]
[1750436993968,0.69511582,104200.0,104190.0,0.45381998]
[1750436994170,0.69511582,104200.0,104190.0,0.46341746]
[1750436994171,0.95827542,104200.0,104190.0,0.46341746]
[1750436994407,1.15981091,104200.0,104190.0,0.47301475]
[1750436994632,1.15021445,104200.0,104190.0,0.46341746]
[1750436996215,1.14061771,104200.0,104190.0,0.46341746]
[1750436997273,1.14061771,104200.0,104190.0,0.47301484]
[1750436997522,0.68551954,104200.0,104190.0,0.47301484]
[1750436997745,0.68551954,104200.0,104190.0,0.47301438]
[1750436997746,1.14061771,104200.0,104190.0,0.47301438]
[1750436998434,0.96787171,104200.0,104190.0,0.46341672]
[1750436998685,0.97746808,104200.0,104190.0,0.46341663]
[1750436998933,0.95827442,104200.0,104190.0,0.46341663]
[1750436999420,1.15980982,104200.0,104190.0,0.27625223]
[1750436999634,0.97746808,104200.0,104190.0,0.45252961]
[1750437000067,1.1598111,104200.0,104190.0,0.23385466]
[1750437000290,0.191957,104190.0,104180.0,0.27347268]
[1750437000639,4.96007935,104190.0,104180.0,0.03]
[1750437000641,0.34959821,104180.0,104170.0,0.24349267]
[1750437000872,0.8046962,104180.0,104170.0,0.29582131]
[1750437001084,0.79509817,104180.0,104170.0,0.29582131]
[1750437001293,0.81429432,104180.0,104170.0,0.29582131]
[1750437001498,0.81429423,104180.0,104170.0,0.29582131]
[1750437001711,0.82389254,104180.0,104170.0,0.29582131]
[1750437002129,0.82389244,104180.0,104170.0,0.29582131]
[1750437002882,0.81429423,104180.0,104170.0,0.29782131]
[1750437003114,0.79509817,104180.0,104170.0,0.53865315]
[1750437003327,0.34,104180.0,104170.0,0.53865315]
[1750437003533,0.34,104180.0,104170.0,0.54165315]
[1750437003769,0.79509817,104180.0,104170.0,0.54165315]
[1750437005992,0.45509817,104180.0,104170.0,0.54165315]
[1750437006425,0.45509817,104190.0,104180.0,0.27418507]
[1750437006675,0.45509817,104190.0,104180.0,0.34538615]
[1750437007503,3.77096229,104200.0,104190.0,0.28487943]
[1750437007750,0.46337346,104200.0,104190.0,0.45139943]
[1750437008010,0.4921624,104200.0,104190.0,0.45139943]
[1750437008212,0.47296956,104200.0,104190.0,0.45139943]
[1750437008414,0.47296956,104200.0,104190.0,0.52487499]
[1750437008694,0.49216221,104200.0,104190.0,0.52487499]
[1750437008911,0.58744105,104200.0,104190.0,0.34762779]
[1750437009125,0.59803751,104200.0,104190.0,0.45139943]
[1750437009348,0.60763416,104200.0,104190.0,0.45022943]
[1750437009561,0.60763416,104200.0,104190.0,0.45135943]
[1750437009784,0.60863416,104200.0,104190.0,0.45135943]
[1750437010004,0.80057273,104200.0,104190.0,0.26568475]
[1750437010222,0.80057273,104200.0,104190.0,0.40863223]
[1750437010223,4.97992944,104200.0,104190.0,0.40863223]
[1750437010438,4.97992944,104200.0,104190.0,0.41822961]
[1750437010876,4.97984146,104200.0,104190.0,0.40863223]
[1750437011093,4.77830652,104200.0,104190.0,0.40863223]
[1750437011307,4.32320826,104200.0,104190.0,0.41822943]
[1750437011518,4.33280509,104200.0,104190.0,0.41822943]
[1750437011731,4.32320771,104200.0,104190.0,0.25174943]
[1750437011945,4.31361116,104200.0,104190.0,0.44898943]
[1750437012166,4.32320744,104200.0,104190.0,0.44898943]
[1750437012590,4.33280409,104200.0,104190.0,0.44898943]
[1750437013016,4.32320725,104200.0,104190.0,0.51624688]
[1750437013227,4.31361088,104200.0,104190.0,0.51624688]
[1750437013452,4.67280408,104200.0,104190.0,0.51624688]
[1750437013684,4.67280408,104200.0,104190.0,0.45011943]
[1750437014105,4.87433957,104200.0,104190.0,0.4597169]
[1750437014317,4.87433957,104200.0,104190.0,0.4681841]
[1750437014318,4.67280408,104200.0,104190.0,0.4681841]
[1750437015015,4.66320734,104200.0,104190.0,0.4681841]
[1750437015446,4.63441841,104200.0,104190.0,0.4693141]
[1750437015675,4.53913948,104200.0,104190.0,0.53544138]
[1750437015890,0.01018731,104200.0,104190.0,0.53544138]
[1750437016105,0.46528548,104200.0,104190.0,0.53544138]
[1750437016321,0.80528548,104200.0,104190.0,0.53544138]
[1750437016531,0.46528548,104200.0,104190.0,0.53544138]
[1750437016755,0.80528548,104200.0,104190.0,0.53544138]
[1750437017229,0.35018731,104200.0,104190.0,0.53544138]
[1750437017445,0.80528548,104200.0,104190.0,0.53544138]
[1750437022175,0.80528548,104200.0,104190.0,0.53524138]
[1750437023963,0.80528548,104200.0,104190.0,0.53520138]
[1750437024177,0.80528548,104200.0,104190.0,0.36900138]
[1750437024392,0.80528548,104200.0,104190.0,0.53516138]
[1750437025750,0.35018731,104200.0,104190.0,0.53516138]
[1750437025972,0.80528548,104200.0,104190.0,0.53516138]
[1750437026685,0.35018731,104200.0,104190.0,0.53516138]
[1750437027769,0.49395659,104210.0,104200.0,0.28575824]
[1750437027994,0.52321468,104210.0,104200.0,0.35867792]
[1750437028203,0.51361895,104210.0,104200.0,0.35867792]
[1750437028629,0.52321468,104210.0,104200.0,0.35867792]
[1750437028857,0.51361895,104210.0,104200.0,0.35867792]
[1750437029058,0.51361886,104210.0,104200.0,0.35867792]
[1750437029270,0.51761886,104210.0,104200.0,0.35867792]
[1750437029487,0.51761877,104210.0,104200.0,0.35867792]
[1750437029935,0.52721422,104210.0,104200.0,0.35867792]
[1750437030278,0.53573744,104210.0,104200.0,0.35867792]
[1750437030592,0.52614199,104210.0,104200.0,0.35867792]
[1750437030814,0.50695136,104210.0,104200.0,0.35867792]
[1750437031023,0.51854672,104210.0,104200.0,0.35867792]
[1750437031501,0.49935619,104210.0,104200.0,0.35867792]
[1750437032434,0.50895146,104210.0,104200.0,0.35867792]
[1750437032895,0.49935619,104210.0,104200.0,0.35867792]
[1750437033890,0.51499477,104210.0,104200.0,0.35867792]
[1750437034200,0.01499477,104210.0,104200.0,0.35867792]
[1750437034900,0.01299477,104210.0,104200.0,0.35867792]
[1750437035122,0.50899477,104210.0,104200.0,0.35967792]
[1750437035359,0.00899477,104210.0,104200.0,0.36067792]
[1750437035574,0.46409294,104210.0,104200.0,0.36067792]
[1750437036019,0.46409294,104210.0,104200.0,0.28775824]
[1750437039871,0.96409294,104210.0,104200.0,0.28775824]
[1750437040124,0.46409294,104210.0,104200.0,0.28775824]
[1750437040870,0.47368811,104210.0,104200.0,0.28775824]
[1750437041573,0.46409294,104210.0,104200.0,0.28775824]
[1750437041830,0.47368811,104210.0,104200.0,0.36087792]
[1750437042052,0.69439508,104210.0,104200.0,0.2674354]
[1750437042299,0.59775376,104210.0,104200.0,0.41952824]
[1750437042533,0.60734958,104210.0,104200.0,0.41952824]
[1750437043243,0.59775376,104210.0,104200.0,0.41952824]
[1750437043708,0.60734958,104210.0,104200.0,0.41952824]
[1750437043949,0.60734958,104210.0,104200.0,0.49252192]
[1750437044183,0.59775376,104210.0,104200.0,0.49252192]
[1750437044893,1.12967392,104210.0,104200.0,0.49252192]
[1750437045130,1.1200793,104210.0,104200.0,0.22493857]
[1750437045372,4.8860433,104210.0,104200.0,0.002]
[1750437045687,5.10971968,104210.0,104200.0,0.002]
[1750437045899,5.07251845,104210.0,104200.0,0.002]
[1750437046823,5.07251845,104210.0,104200.0,0.001]
[1750437047069,5.07351845,104210.0,104200.0,0.001]
[1750437047796,5.06601845,104210.0,104200.0,0.001]
[1750437048031,4.27538949,104200.0,104190.0,0.26104507]
[1750437048265,4.1979225,104200.0,104190.0,0.29134507]
[1750437048495,4.65302067,104200.0,104190.0,0.35773645]
[1750437048722,4.65302067,104200.0,104190.0,0.52337645]
[1750437048950,4.65302067,104200.0,104190.0,0.45821507]
[1750437049185,4.85455607,104200.0,104190.0,0.44861787]
[1750437049437,4.65302067,104200.0,104190.0,0.42668507]
[1750437049667,4.65302058,104200.0,104190.0,0.45888507]
[1750437049899,4.6242311,104200.0,104190.0,0.45888507]
[1750437050139,4.073854,104200.0,104190.0,0.52532245]
[1750437050401,0.00899477,104210.0,104200.0,0.28535824]
[1750437051130,0.46409294,104210.0,104200.0,0.28535824]
[1750437051364,0.46409294,104210.0,104200.0,0.36591828]
[1750437051836,0.80509294,104210.0,104200.0,0.36591828]
[1750437052540,0.80609294,104210.0,104200.0,0.36591828]
[1750437053331,0.35099477,104210.0,104200.0,0.36591828]
[1750437053561,0.80609294,104210.0,104200.0,0.36591828]
[1750437061943,0.35099477,104210.0,104200.0,0.36591828]
[1750437062884,0.80609294,104210.0,104200.0,0.36591828]
[1750437063946,0.81568821,104210.0,104200.0,0.36591828]
[1750437064171,0.82528356,104210.0,104200.0,0.36591828]
[1750437064396,0.82528347,104210.0,104200.0,0.355092]
[1750437064609,0.82528347,104210.0,104200.0,0.36591828]
[1750437065025,0.84447483,104210.0,104200.0,0.36468828]
[1750437065234,0.83487901,104210.0,104200.0,0.36591828]
[1750437065441,1.02679973,104210.0,104200.0,0.31489544]
[1750437065654,0.01919302,104200.0,104190.0,0.24295021]
[1750437065866,4.85455589,104200.0,104190.0,0.35723553]
[1750437066074,4.84495961,104200.0,104190.0,0.38602832]
[1750437066288,4.64342412,104200.0,104190.0,0.23034552]
[1750437066495,4.65302086,104200.0,104190.0,0.26254552]
[1750437067128,4.52895217,104200.0,104190.0,0.32978675]
[1750437067369,0.36918558,104210.0,104200.0,0.25262824]
[1750437067585,0.35859004,104210.0,104200.0,0.45219824]
[1750437067792,0.80409294,104210.0,104200.0,0.45219824]
[1750437068680,0.80509294,104210.0,104200.0,0.45219824]
[1750437068896,0.80509294,104210.0,104200.0,0.52515717]
[1750437069322,0.80609294,104210.0,104200.0,0.52515717]
[1750437069537,0.35099477,104210.0,104200.0,0.52515717]
[1750437069973,0.45709817,104210.0,104200.0,0.52515717]
[1750437070182,0.002,104210.0,104200.0,0.52515717]
[1750437070828,0.002,104210.0,104200.0,0.63497695]
[1750437071045,0.002,104210.0,104200.0,1.09007512]
[1750437071935,0.002,104210.0,104200.0,1.13411512]
[1750437071936,0.001,104210.0,104200.0,1.13411512]
[1750437072358,0.34005,104220.0,104210.0,0.29744791]
[1750437072622,0.34005,104220.0,104210.0,0.40412524]
[1750437072623,0.34014045,104220.0,104210.0,0.40412524]
[1750437073260,0.79523862,104220.0,104210.0,0.29430546]
[1750437073475,0.34014045,104220.0,104210.0,0.29430546]
[1750437073691,0.79523862,104220.0,104210.0,0.29430546]
[1750437074116,0.34014045,104220.0,104210.0,0.29430546]
[1750437074328,0.79523862,104220.0,104210.0,0.29730546]
[1750437074744,0.79523862,104220.0,104210.0,0.29930546]
[1750437075407,0.82402212,104220.0,104210.0,0.42142706]
[1750437075618,0.82402203,104220.0,104210.0,0.42142706]
[1750437076197,0.81442741,104220.0,104210.0,0.42061706]
[1750437076417,0.8144274,104220.0,104210.0,0.42061706]
[1750437076637,0.82402202,104220.0,104210.0,0.49517776]
[1750437076847,0.8144274,104220.0,104210.0,0.49517776]
[1750437076971,0.80483287,104220.0,104210.0,0.52607776]
[1750437077199,0.81442731,104220.0,104210.0,0.52307776]
[1750437077426,0.81442731,104220.0,104210.0,0.52407776]
[1750437077644,0.80483287,104220.0,104210.0,0.52407776]
[1750437077866,0.79523862,104220.0,104210.0,0.52407776]
[1750437078277,0.80483306,104220.0,104210.0,0.52407776]
[1750437078497,0.82402221,104220.0,104210.0,0.52407776]
[1750437078693,0.81442759,104220.0,104210.0,0.52407776]
[1750437079339,0.80483306,104220.0,104210.0,0.52407776]
[1750437079764,0.81442777,104220.0,104210.0,0.52407776]
[1750437080256,0.82402267,104220.0,104210.0,0.52407776]
[1750437080424,1.0255194,104220.0,104210.0,0.52407776]
[1750437080648,1.0255194,104220.0,104210.0,0.49198776]
[1750437080875,0.83361766,104220.0,104210.0,0.49198776]
[1750437081103,1.0255194,104220.0,104210.0,0.49198776]
[1750437081796,0.6854694,104220.0,104210.0,0.49198776]
[1750437082222,0.4839724,104220.0,104210.0,0.49317776]
[1750437082443,0.4935673,104220.0,104210.0,0.49317776]
[1750437082669,0.47437759,104220.0,104210.0,0.49317776]
[1750437082913,0.4839723,104220.0,104210.0,0.49317776]
[1750437083139,0.4935672,104220.0,104210.0,0.49317776]
[1750437083364,0.4839723,104220.0,104210.0,0.49317776]
[1750437083584,0.4839723,104220.0,104210.0,0.52537776]
[1750437083812,0.47437759,104220.0,104210.0,0.52537776]
[1750437084053,0.46478306,104220.0,104210.0,0.52537776]
[1750437084947,0.46478297,104220.0,104210.0,0.52537776]
[1750437085166,0.45518862,104220.0,104210.0,0.52537776]
[1750437086167,9.045e-05,104220.0,104210.0,0.52537776]
[1750437090846,0.45518862,104220.0,104210.0,0.52537776]
[1750437091050,0.46478297,104220.0,104210.0,0.52513776]
[1750437091257,0.45518862,104220.0,104210.0,0.52513776]
[1750437092540,0.46478297,104220.0,104210.0,0.52513776]
[1750437093106,0.4743774,104220.0,104210.0,0.52513776]
[1750437093310,0.94866491,104220.0,104210.0,0.23411607]
[1750437093520,5.00180958,104220.0,104210.0,0.36835607]
[1750437093722,4.98971098,104220.0,104210.0,0.002]
[1750437093952,4.98052636,104220.0,104210.0,0.002]
[1750437094309,5.00268237,104220.0,104210.0,0.002]
[1750437094534,4.98052636,104220.0,104210.0,0.002]
[1750437094747,4.98052636,104220.0,104210.0,0.001]
[1750437094955,3.733854,104210.0,104200.0,0.42706424]
[1750437095159,3.733854,104210.0,104200.0,0.26222424]
[1750437095160,0.45509817,104210.0,104200.0,0.26222424]
[1750437095369,0.4646939,104210.0,104200.0,0.26222424]
[1750437095584,0.4646939,104210.0,104200.0,0.32752522]
[1750437095808,4.67417329,104220.0,104210.0,0.20151598]
[1750437096022,5.12927146,104220.0,104210.0,0.20151598]
[1750437096628,4.75860924,104220.0,104210.0,0.25260707]
[1750437096831,0.00209045,104220.0,104210.0,0.4569627]
[1750437097049,0.50209045,104220.0,104210.0,0.54226028]
[1750437097262,0.00209045,104220.0,104210.0,0.54226028]
[1750437097913,0.00309045,104220.0,104210.0,0.54226028]
[1750437099482,0.50309045,104220.0,104210.0,0.54226028]
[1750437099697,0.00309045,104220.0,104210.0,0.54226028]
[1750437100742,0.46778297,104220.0,104210.0,0.54226028]
[1750437100945,0.4773775,104220.0,104210.0,0.4569627]
[1750437101193,0.4773775,104220.0,104210.0,0.4581127]
[1750437102227,0.46778297,104220.0,104210.0,0.4581127]
[1750437103163,0.48697249,104220.0,104210.0,0.4269227]
[1750437103380,0.47737759,104220.0,104210.0,0.4269227]
[1750437104447,0.47737759,104220.0,104210.0,0.49287344]
[1750437104658,0.45818862,104220.0,104210.0,0.52432344]
[1750437105700,0.46778297,104220.0,104210.0,0.52432344]
[1750437105909,0.4773775,104220.0,104210.0,0.52432344]
[1750437106323,0.46778287,104220.0,104210.0,0.52432344]
[1750437106773,0.45818862,104220.0,104210.0,0.52432344]
[1750437108355,0.46778287,104220.0,104210.0,0.52432344]
[1750437108577,0.45818862,104220.0,104210.0,0.52432344]
[1750437109667,0.00309045,104220.0,104210.0,0.52432344]
[1750437110366,0.00309045,104220.0,104210.0,0.99396246]
[1750437110609,0.00309045,104220.0,104210.0,0.53886429]
[1750437111047,9.045e-05,104220.0,104210.0,0.53886429]
[1750437111457,9.045e-05,104220.0,104210.0,0.54086429]
[1750437112499,9.045e-05,104220.0,104210.0,0.54286429]
[1750437116599,9.045e-05,104220.0,104210.0,0.63814322]
[1750437120587,9.045e-05,104220.0,104210.0,1.09324139]
[1750437122947,9.045e-05,104220.0,104210.0,1.54833956]
[1750437123186,9.045e-05,104220.0,104210.0,1.57643429]
[1750437123666,9.045e-05,104220.0,104210.0,1.57243429]
[1750437123873,9.045e-05,104220.0,104210.0,1.58343429]
[1750437124088,0.00109045,104220.0,104210.0,1.60043429]
[1750437124322,5e-05,104230.0,104220.0,0.28378588]
[1750437124555,5e-05,104230.0,104220.0,1.41766897]
[1750437124995,5e-05,104230.0,104220.0,0.9625708]
[1750437125215,5e-05,104230.0,104220.0,0.50747263]
[1750437125432,5e-05,104230.0,104220.0,0.9625708]
[1750437125649,5e-05,104230.0,104220.0,1.1328908]
[1750437126316,5e-05,104230.0,104220.0,1.1408908]
[1750437130228,5e-05,104230.0,104220.0,0.47763263]
[1750437130231,5e-05,104230.0,104220.0,0.68547263]
[1750437130435,5e-05,104230.0,104220.0,0.5901937]
[1750437130838,5e-05,104230.0,104220.0,0.60473455]
[1750437131067,5e-05,104230.0,104220.0,0.52728455]
[1750437131276,5e-05,104230.0,104220.0,0.52843455]
[1750437131510,5e-05,104230.0,104220.0,0.56043455]
[1750437131717,5e-05,104230.0,104220.0,1.01553272]
[1750437131928,5e-05,104230.0,104220.0,1.56590982]
[1750437133834,5e-05,104230.0,104220.0,1.11081165]
[1750437134267,5e-05,104230.0,104220.0,1.56590982]
[1750437135036,5e-05,104230.0,104220.0,1.11081165]
[1750437136835,5e-05,104230.0,104220.0,1.56590982]
[1750437137249,5e-05,104230.0,104220.0,1.11081165]
[1750437137905,5e-05,104230.0,104220.0,1.56590982]
[1750437141545,5e-05,104230.0,104220.0,1.45166982]
[1750437141755,5e-05,104230.0,104220.0,1.61574982]
[1750437142015,5e-05,104230.0,104220.0,1.65166982]
[1750437142265,5e-05,104230.0,104220.0,1.80974982]
[1750437142453,5e-05,104230.0,104220.0,1.80174982]
[1750437142454,9.67e-06,104230.0,104220.0,1.80174982]
[1750437142730,9.67e-06,104230.0,104220.0,1.81174982]
[1750437142948,9.67e-06,104230.0,104220.0,1.82774982]
[1750437143380,5e-05,104250.0,104240.0,0.28404354]
[1750437143630,5e-05,104250.0,104240.0,1.09417445]
[1750437143844,5e-05,104250.0,104240.0,1.1087153]
[1750437145175,5e-05,104250.0,104240.0,0.65361713]
[1750437145408,5e-05,104250.0,104240.0,1.1087153]
[1750437145842,5e-05,104250.0,104240.0,1.1177153]
[1750437146054,0.48619817,104280.0,104270.0,0.22058006]
[1750437146294,0.48619817,104280.0,104270.0,0.39960699]
[1750437146505,0.48633959,104280.0,104270.0,0.39960699]
[1750437147003,0.03124142,104280.0,104270.0,0.39960699]
[1750437147216,0.98633959,104280.0,104270.0,0.39960699]
[1750437147427,0.48633959,104280.0,104270.0,0.39960699]
[1750437148084,0.03124142,104280.0,104270.0,0.39960699]
[1750437148315,0.00014142,104280.0,104270.0,0.46515699]
[1750437148547,0.00014142,104280.0,104270.0,0.97839601]
[1750437148794,0.00014142,104280.0,104270.0,1.07367494]
[1750437149016,0.00014142,104280.0,104270.0,0.61857677]
[1750437149464,0.00014142,104280.0,104270.0,1.07367494]
[1750437150774,0.00014142,104280.0,104270.0,0.37702677]
[1750437150993,0.00014142,104280.0,104270.0,0.58454677]
[1750437151209,0.45523959,104280.0,104270.0,0.37702677]
[1750437151438,0.00014142,104280.0,104270.0,0.58454677]
[1750437151664,0.00014142,104280.0,104270.0,0.37817677]
[1750437151877,0.00014142,104280.0,104270.0,0.58569677]
[1750437152957,0.00014142,104280.0,104270.0,0.58454677]
[1750437153608,0.00014142,104280.0,104270.0,0.58569677]
[1750437154598,0.00014142,104280.0,104270.0,0.58454677]
[1750437155925,0.00014142,104280.0,104270.0,0.58569677]
[1750437157426,0.00014142,104280.0,104270.0,0.58454677]
[1750437157646,0.00014142,104280.0,104270.0,0.61679677]
[1750437159462,0.48703959,104280.0,104270.0,0.26720699]
[1750437159667,0.03194142,104280.0,104270.0,0.38442006]
[1750437159885,0.48703959,104280.0,104270.0,0.38442006]
[1750437161145,0.48703959,104280.0,104270.0,0.38438006]
[1750437161357,0.48703959,104280.0,104270.0,0.22058006]
[1750437161566,0.48703959,104280.0,104270.0,0.38438006]
[1750437161987,0.48703959,104280.0,104270.0,0.45151402]
[1750437163255,0.03194142,104280.0,104270.0,0.45151402]
[1750437163464,0.00014142,104280.0,104270.0,0.48261402]
[1750437164299,0.00014142,104280.0,104270.0,0.58261402]
[1750437164728,0.45523959,104280.0,104270.0,0.55151402]
[1750437165597,0.45523959,104280.0,104270.0,0.58341402]
[1750437166723,0.48763959,104280.0,104270.0,0.55151402]
[1750437166938,0.48763959,104280.0,104270.0,0.38771402]
[1750437167160,0.95174776,104280.0,104270.0,0.32058006]
[1750437167378,0.96133659,104280.0,104270.0,0.32058006]
[1750437167595,0.97092569,104280.0,104270.0,0.32058006]
[1750437167836,0.96133659,104280.0,104270.0,0.32058006]
[1750437168059,4.81923701,104280.0,104270.0,0.32058006]
[1750437168292,4.81909559,104280.0,104270.0,0.32058006]
[1750437168711,5.02047639,104280.0,104270.0,0.32058006]
[1750437168923,5.01088756,104280.0,104270.0,0.31099022]
[1750437169450,5.01088756,104280.0,104270.0,0.29180972]
[1750437169688,4.99170945,104280.0,104270.0,0.30140002]
[1750437169926,4.99170945,104280.0,104270.0,0.31099013]
[1750437170320,4.99170945,104280.0,104270.0,0.1]
[1750437170560,4.99170945,104280.0,104270.0,0.30140011]
[1750437170991,4.99170945,104280.0,104270.0,0.29180972]
[1750437171201,4.99170945,104280.0,104270.0,0.30140002]
[1750437171417,4.99170945,104280.0,104270.0,0.31099023]
[1750437172059,4.80950649,104280.0,104270.0,0.32058025]
[1750437172268,4.7999172,104280.0,104270.0,0.33017018]
[1750437172471,4.7999172,104280.0,104270.0,0.33976002]
[1750437172894,4.7903281,104280.0,104270.0,0.33976002]
[1750437173105,4.79991711,104280.0,104270.0,0.33976002]
[1750437173328,5.00129763,104280.0,104270.0,0.31099023]
[1750437173550,4.81909568,104280.0,104270.0,0.32058016]
[1750437173755,4.81909568,104280.0,104270.0,0.33017]
[1750437174229,4.8095063,104280.0,104270.0,0.33017]
[1750437174441,5.01088774,104280.0,104270.0,0.31099041]
[1750437174664,4.99170954,104280.0,104270.0,0.1]
[1750437174883,5.48749258,104280.0,104270.0,0.00989866]
[1750437175098,0.06767283,104260.0,104250.0,0.015]
[1750437175325,5.20636022,104260.0,104250.0,0.015]
[1750437175536,5.19676955,104260.0,104250.0,0.015]
[1750437176649,5.22624204,104260.0,104250.0,0.015]
[1750437177979,0.21107101,104230.0,104220.0,0.07634494]
[1750437178202,5.05811135,104230.0,104220.0,0.27784176]
[1750437178430,4.60301318,104230.0,104220.0,0.27784176]
[1750437178643,4.60301318,104230.0,104220.0,0.28743675]
[1750437178853,4.59341948,104230.0,104220.0,0.08594002]
[1750437179270,4.59341948,104230.0,104220.0,0.27784176]
[1750437179483,4.59341948,104230.0,104220.0,0.29717307]
[1750437179716,4.59341948,104230.0,104220.0,0.28757817]
[1750437179926,5.14379658,104230.0,104220.0,0.00024142]
[1750437180137,5.14379658,104230.0,104220.0,0.20173815]
[1750437180138,4.68869841,104230.0,104220.0,0.20173815]
[1750437180359,4.68869841,104230.0,104220.0,0.00024142]
[1750437180629,4.68869841,104230.0,104220.0,0.20173824]
[1750437181049,4.68869841,104230.0,104220.0,0.21133323]
[1750437181255,4.68969841,104230.0,104220.0,0.21133323]
[1750437181939,4.73313841,104230.0,104220.0,0.21133323]
[1750437182374,5.27391245,104230.0,104220.0,0.00024142]
[1750437182591,5.27387245,104230.0,104220.0,0.00024142]
[1750437183446,3.87002691,104230.0,104220.0,0.21133268]
[1750437183684,4.46805814,104230.0,104220.0,0.25142712]
[1750437184112,0.7523921,104230.0,104220.0,0.25142712]
[1750437184326,0.74279803,104230.0,104220.0,0.25142712]
[1750437184541,0.74679803,104230.0,104220.0,0.25142712]
[1750437184760,0.27251236,104230.0,104220.0,0.25142712]
[1750437184983,0.73724395,104230.0,104220.0,0.25142712]
[1750437185192,0.73724395,104230.0,104220.0,0.29779586]
[1750437185616,0.74683765,104230.0,104220.0,0.29779586]
[1750437185838,0.75643163,104230.0,104220.0,0.25142712]
[1750437186064,0.76243163,104230.0,104220.0,0.25142712]
[1750437186274,0.74324395,104230.0,104220.0,0.25142712]
[1750437186487,0.46509817,104230.0,104220.0,0.28387712]
[1750437186746,0.96509817,104230.0,104220.0,0.33337586]
[1750437186952,0.01,104230.0,104220.0,0.33337586]
[1750437187591,0.01,104230.0,104220.0,0.28387712]
[1750437188686,0.01959333,104230.0,104220.0,0.28387712]
[1750437188900,0.59930776,104230.0,104220.0,0.28387712]
[1750437189123,0.58971433,104230.0,104220.0,0.28387712]
[1750437189379,0.01,104230.0,104220.0,0.28387712]
[1750437189580,0.01959333,104230.0,104220.0,0.44747712]
[1750437189794,0.01,104230.0,104220.0,0.44747712]
[1750437190231,0.580121,104230.0,104220.0,0.44747712]
[1750437190440,0.01,104230.0,104220.0,0.44747712]
[1750437191942,0.01959333,104230.0,104220.0,0.44747712]
[1750437192151,0.580121,104230.0,104220.0,0.44747712]
[1750437192581,0.60890174,104230.0,104220.0,0.44632712]
[1750437192798,0.580121,104230.0,104220.0,0.41615712]
[1750437193013,0.580121,104230.0,104220.0,0.51265386]
[1750437193672,0.580121,104230.0,104220.0,0.44685712]
[1750437194362,0.01,104230.0,104220.0,0.44685712]
[1750437195726,0.59889888,104240.0,104230.0,0.22066471]
[1750437195954,0.5893061,104240.0,104230.0,0.25219471]
[1750437196169,0.57971341,104240.0,104230.0,0.25219471]
[1750437196608,0.58930601,104240.0,104230.0,0.28479471]
[1750437196828,0.58930592,104240.0,104230.0,0.28479471]
[1750437197098,0.57971341,104240.0,104230.0,0.28479471]
[1750437197309,0.570121,104240.0,104230.0,0.28479471]
[1750437197746,0.570121,104240.0,104230.0,0.35076738]
[1750437197958,0.57971341,104240.0,104230.0,0.35076738]
[1750437198144,0.58171341,104240.0,104230.0,0.35076738]
[1750437198349,0.34181804,104240.0,104230.0,0.35076738]
[1750437198801,0.35141064,104240.0,104230.0,0.35076738]
[1750437199013,0.36100333,104240.0,104230.0,0.35076738]
[1750437199464,0.3705963,104240.0,104230.0,0.35076738]
[1750437199686,0.34181804,104240.0,104230.0,0.35076738]
[1750437199905,0.35141064,104240.0,104230.0,0.35076738]
[1750437200121,0.34181804,104240.0,104230.0,0.35076738]
[1750437200338,0.35141064,104240.0,104230.0,0.35076738]
[1750437200951,0.34181804,104240.0,104230.0,0.35076738]
[1750437201371,0.33222563,104240.0,104230.0,0.35076738]
[1750437202000,0.34181804,104240.0,104230.0,0.35076738]
[1750437202207,0.35141055,104240.0,104230.0,0.35076738]
[1750437202660,0.36100315,104240.0,104230.0,0.35076738]
[1750437202875,0.38018881,104240.0,104230.0,0.35076738]
[1750437203088,0.38018871,104240.0,104230.0,0.35076738]
[1750437204268,0.36100315,104240.0,104230.0,0.35076738]
[1750437204500,0.02118529,104240.0,104230.0,0.35076738]
[1750437204711,0.60089926,104240.0,104230.0,0.31703738]
[1750437204928,4.34434632,104240.0,104230.0,0.41458471]
[1750437205146,4.33475326,104240.0,104230.0,0.25106471]
[1750437205361,4.35393947,104240.0,104230.0,0.25106471]
[1750437205575,4.5579191,104240.0,104230.0,0.21107138]
[1750437205821,4.5583291,104240.0,104230.0,0.21107138]
[1750437206213,4.54873613,104240.0,104230.0,0.21107138]
[1750437206862,4.53009042,104240.0,104230.0,0.20147749]
[1750437207104,3.74344807,104230.0,104220.0,0.38606316]
[1750437207322,0.47538441,104230.0,104220.0,0.3956576]
[1750437207534,0.47538441,104230.0,104220.0,0.45852784]
[1750437207957,0.77214056,104230.0,104220.0,0.22254316]
[1750437208162,4.54608872,104230.0,104220.0,0.21133287]
[1750437208387,4.54608872,104230.0,104220.0,0.25392758]
[1750437208595,4.30451716,104230.0,104220.0,0.26352202]
[1750437208808,4.31410993,104230.0,104220.0,0.26352202]
[1750437209038,4.19005036,104230.0,104220.0,0.29505202]
[1750437209249,4.19005036,104230.0,104220.0,0.3610567]
[1750437209465,4.19964397,104230.0,104220.0,0.3610567]
[1750437209686,4.22842553,104230.0,104220.0,0.3295267]
[1750437209890,4.22842553,104230.0,104220.0,0.26352202]